bitfinex-derivatives/quotes_SOLF0:USTF0_20250816
["timestamp","ask_amount","ask_price","bid_price","bid_amount"]
[1755350368969,3.07,188.27,188.24,5.3085]
[1755350369169,3.07,188.27,188.26,3.02]
[1755350370473,356.94,188.34,188.26,3.02]
[1755350370474,3.07,188.3,188.26,3.02]
[1755350370667,3.07,188.33,188.25,5.3084]
[1755350370873,3.07,188.31,188.24,8.3287]
[1755350371976,3.07,188.31,188.26,3.02]
[1755350372169,3.07,188.3,188.23,3.63016726]
[1755350372364,4.45022888,188.36,188.23,3.63016726]
[1755350372365,3.07,188.35,188.23,3.63016726]
[1755350372570,3.07,188.33,188.24,3.02]
[1755350372865,3.07,188.31,188.24,8.3285]
[1755350373676,3.07,188.31,188.25,5.3084]
[1755350373877,3.07,188.31,188.25,8.3284]
[1755350374767,3.07,188.31,188.23,3.63016726]
[1755350374972,3.82517189,188.3,188.22,3.02]
[1755350375271,3.07,188.33,188.22,3.02]
[1755350375475,3.07,188.31,188.23,3.02]
[1755350375678,3.82632823,188.3,188.24,3.02]
[1755350375970,3.07,188.29,188.25,3.02]
[1755350376275,3.07,188.34,188.24,3.63016726]
[1755350376475,3.07,188.32,188.24,6.65016726]
[1755350376676,3.07,188.3,188.24,6.65016726]
[1755350377179,3.07,188.3,188.25,5.3083]
[1755350377776,3.07,188.3,188.24,11.95886726]
[1755350378276,3.07,188.3,188.24,3.02]
[1755350378477,3.07,188.3,188.23,5.309]
[1755350378478,3.07,188.28,188.23,3.02]
[1755350378977,3.07,188.28,188.23,8.329]
[1755350380378,3.07,188.28,188.24,5.3087]
[1755350380578,3.07,188.28,188.24,8.3287]
[1755350382577,3.07,188.28,188.24,3.02]
[1755350383178,3.07,188.28,188.24,8.3286]
[1755350383381,3.07,188.28,188.24,5.3086]
[1755350383581,3.07,188.28,188.25,3.02]
[1755350384580,3.07,188.28,188.25,8.3284]
[1755350384983,3.07,188.27,188.26,3.02]
[1755350387678,3.07,188.26,188.24,5.3087]
[1755350387980,4.45022888,188.34,188.24,8.3287]
[1755350388181,3.07,188.25,188.24,8.3287]
[1755350394987,2.82,188.31,188.25,3.0]
[1755350395187,2.82,188.29,188.25,3.0]
[1755350395384,8.08039614,188.34,188.25,3.0]
[1755350395587,8.24055656,188.33,188.25,3.0]
[1755350395781,2.82,188.31,188.25,3.0]
[1755350395986,2.82,188.29,188.26,5.3081]
[1755350396185,2.82,188.28,188.27,3.0]
[1755350397281,2.82,188.28,188.27,8.3079]
[1755350399088,2.82,188.3,188.27,8.3079]
[1755350399792,4.45022888,188.35,188.28,3.0]
[1755350399996,2.82,188.33,188.28,3.0]
[1755350400294,2.82,188.31,188.28,3.0]
[1755350400490,2.82,188.29,188.28,3.0]
[1755350400888,2.82,188.29,188.27,8.3079]
[1755350401091,2.82,188.28,188.27,5.3079]
[1755350401291,2.82,188.31,188.27,5.3079]
[1755350401796,2.82,188.31,188.28,3.0]
[1755350402090,3.81243487,188.3,188.27,3.0]
[1755350402292,2.82,188.28,188.27,3.0]
[1755350402791,2.82,188.34,188.27,5.3079]
[1755350402991,2.82,188.32,188.26,3.63016726]
[1755350403187,2.82,188.34,188.27,3.0]
[1755350403394,2.82,188.32,188.28,5.3075]
[1755350403593,2.82,188.32,188.29,3.0]
[1755350404388,2.82,188.3,188.29,3.0]
[1755350405291,2.82,188.3,188.21,3.0]
[1755350405589,2.82,188.28,188.21,3.0]
[1755350405792,2.82,188.26,188.21,3.0]
[1755350405996,2.82,188.26,188.18,3.0]
[1755350406191,2.82,188.26,188.19,5.3101]
[1755350406492,2.82,188.24,188.19,3.0]
[1755350406890,2.82,188.24,188.19,5.3102]
[1755350407087,2.82,188.24,188.2,3.0]
[1755350407288,2.82,188.22,188.16,3.0]
[1755350407489,2.82,188.2,188.14,6.63016726]
[1755350407892,2.82,188.2,188.14,3.0]
[1755350408092,2.82,188.18,188.14,3.0]
[1755350408791,2.82,188.18,188.15,3.0]
[1755350409298,2.82,188.22,188.11,6.63016726]
[1755350409487,2.82,188.19,188.09,6.63016726]
[1755350409691,2.82,188.17,188.1,5.3127]
[1755350409891,2.82,188.15,188.1,3.0]
[1755350410098,2.82,188.19,188.1,3.0]
[1755350410296,2.82,188.17,188.1,3.0]
[1755350410496,2.82,188.15,188.1,3.0]
[1755350410792,2.82,188.15,188.09,3.63016726]
[1755350410998,2.82,188.15,188.11,5.3124]
[1755350411195,2.82,188.15,188.11,3.0]
[1755350411497,2.82,188.15,188.09,5.3128]
[1755350411898,2.82,188.15,188.09,8.3128]
[1755350413099,2.82,188.15,188.1,3.0]
[1755350413302,2.82,188.15,188.09,5.3128]
[1755350413702,2.82,188.15,188.09,8.3128]
[1755350414195,2.82,188.15,188.1,3.0]
[1755350414600,2.82,188.15,188.08,8.3132]
[1755350415000,2.82,188.15,188.09,3.0]
[1755350415199,2.82,188.15,188.09,8.313]
[1755350415403,3.63016726,188.2,188.07,3.63016726]
[1755350415604,2.82,188.18,188.08,3.0]
[1755350415900,2.82,188.16,188.08,3.0]
[1755350416496,2.82,188.16,188.12,3.0]
[1755350416802,2.82,188.16,188.11,5.3124]
[1755350417005,2.82,188.16,188.13,3.0]
[1755350417506,2.82,188.19,188.13,3.0]
[1755350419909,2.82,188.19,188.11,2.9]
[1755350420700,2.82,188.19,188.12,2.9]
[1755350421900,2.82,188.19,188.1,5.3126]
[1755350422099,2.82,188.19,188.11,2.9]
[1755350423010,2.82,188.19,188.12,2.9]
[1755350424314,2.82,188.19,188.09,2.9]
[1755350424514,2.82,188.19,188.09,8.213]
[1755350424714,2.82,188.19,188.1,2.9]
[1755350425321,2.82,188.19,188.1,8.2127]
[1755350425525,2.82,188.19,188.11,2.9]
[1755350435329,3.63016726,188.19,188.11,2.9]
[1755350435532,6.89422319,188.18,188.06,2.9]
[1755350435835,3.09,188.17,188.06,2.9]
[1755350436135,19.60016726,188.19,188.06,2.9]
[1755350436136,3.09,188.15,188.06,2.9]
[1755350436632,3.09,188.13,188.06,2.9]
[1755350437027,6.72016726,188.13,188.03,2.9]
[1755350437228,3.09,188.11,188.03,2.9]
[1755350437729,7.43492948,188.1,188.0,2.9]
[1755350437932,3.09,188.08,188.0,2.9]
[1755350439129,19.60016726,188.13,188.03,2.9]
[1755350439435,3.09,188.07,188.04,2.9]
[1755350440434,3.09,188.07,188.05,2.9]
[1755350441031,3.09,188.06,188.05,2.9]
[1755350441234,3.09,188.04,188.03,2.9]
[1755350441434,19.60016726,188.13,188.01,5.3152]
[1755350441634,3.09,188.05,188.04,2.9]
[1755350442034,3.09,188.05,188.0,8.94566726]
[1755350442235,3.09,188.05,188.02,2.9]
[1755350442639,3.09,188.12,188.01,2.9]
[1755350442825,3.80343665,188.11,188.01,2.9]
[1755350443031,6.89343665,188.1,188.01,8.2152]
[1755350443231,3.09,188.09,188.02,2.9]
[1755350444643,3.09,188.09,188.0,6.53016726]
[1755350444841,3.09,188.09,188.0,3.63016726]
[1755350445041,3.09,188.09,188.01,2.9]
[1755350447240,3.09,188.07,188.01,2.9]
[1755350449245,2.89,188.05,188.01,2.9]
[1755350449747,2.89,188.09,188.0,2.92]
[1755350449947,3.81053277,188.08,188.0,2.92]
[1755350450144,6.70393824,188.07,188.01,5.3151]
[1755350450339,2.89,188.05,188.02,2.92]
[1755350451445,2.89,188.04,188.03,2.92]
[1755350453248,2.89,188.1,188.01,2.92]
[1755350453440,8.20204892,188.09,188.01,2.92]
[1755350453747,2.89,188.07,188.01,2.92]
[1755350453947,3.81728091,188.06,188.01,2.92]
[1755350454142,2.89,188.05,188.01,2.92]
[1755350455049,2.89,188.05,188.0,5.3155]
[1755350455351,2.89,188.05,188.02,2.92]
[1755350455749,2.89,188.1,188.02,2.92]
[1755350456051,2.89,188.08,188.02,2.92]
[1755350456351,2.89,188.06,188.01,2.92]
[1755350459547,2.89,188.06,188.0,2.92]
[1755350462856,2.89,188.06,187.98,3.63016726]
[1755350462857,2.89,188.06,187.98,2.92]
[1755350463060,2.89,188.04,187.98,2.92]
[1755350463559,2.89,188.04,187.99,0.03372635]
[1755350463858,2.89,188.08,188.0,2.92]
[1755350464052,3.63016726,188.09,188.0,2.92]
[1755350464053,2.89,188.06,188.0,2.92]
[1755350465848,2.89,188.06,188.01,2.92]
[1755350466048,2.89,188.12,188.01,6.55016726]
[1755350466248,2.89,188.1,188.02,2.92]
[1755350466453,135.90044646,188.13,188.02,2.92]
[1755350466454,2.89,188.08,188.02,2.92]
[1755350467153,2.89,188.06,188.02,2.92]
[1755350467756,2.89,188.06,188.03,2.92]
[1755350468255,2.89,188.11,188.03,2.92]
[1755350468449,2.89,188.13,188.08,2.92]
[1755350468653,357.08,188.18,188.11,2.92]
[1755350468654,2.89,188.15,188.11,2.92]
[1755350468854,4.46044646,188.21,188.11,2.92]
[1755350469048,2.89,188.17,188.11,2.92]
[1755350469759,2.89,188.16,188.14,2.92]
[1755350469954,4.46044646,188.22,188.14,2.92]
[1755350470260,2.89,188.15,188.14,2.92]
[1755350473059,2.89,188.21,188.1,6.55016726]
[1755350473256,2.89,188.19,188.1,6.55016726]
[1755350473458,3.81570813,188.18,188.1,6.55016726]
[1755350473658,2.89,188.16,188.11,2.92]
[1755350473857,2.89,188.16,188.12,2.92]
[1755350474262,2.89,188.16,188.1,6.55016726]
[1755350474455,2.89,188.16,188.1,3.63016726]
[1755350474759,2.89,188.16,188.12,2.92]
[1755350476060,8.09061372,188.22,188.1,3.63016726]
[1755350476358,2.89,188.2,188.11,2.92]
[1755350476560,2.89,188.18,188.11,5.3122]
[1755350476761,2.89,188.16,188.12,2.92]
[1755350476959,2.89,188.16,188.11,5.3122]
[1755350476960,2.89,188.15,188.13,2.92]
[1755350477157,2.89,188.2,188.13,2.92]
[1755350477360,2.89,188.18,188.13,2.92]
[1755350477659,2.89,188.15,188.13,2.92]
[1755350477963,2.89,188.15,188.14,2.92]
[1755350478856,2.86,188.17,188.14,2.92]
[1755350479056,2.86,188.16,188.14,2.92]
[1755350479660,2.86,188.21,188.13,3.09]
[1755350479860,2.86,188.19,188.13,3.09]
[1755350480061,3.82028315,188.18,188.13,3.09]
[1755350480262,2.86,188.16,188.13,3.09]
[1755350480562,2.86,188.16,188.12,5.3121]
[1755350480862,2.86,188.15,188.14,3.09]
[1755350481363,2.86,188.24,188.14,3.09]
[1755350481555,3.81837729,188.23,188.14,3.09]
[1755350481757,2.86,188.22,188.17,3.09]
[1755350481955,68.86696278,188.27,188.16,3.63016726]
[1755350482155,6.67833226,188.26,188.22,5.3093]
[1755350482355,2.86,188.25,188.24,3.09]
[1755350482860,2.86,188.25,188.22,5.3093]
[1755350483059,2.86,188.24,188.22,8.3993]
[1755350483262,2.86,188.29,188.22,6.72016726]
[1755350483462,3.81290153,188.28,188.22,3.63016726]
[1755350483664,2.86,188.26,188.24,3.09]
[1755350483864,2.86,188.25,188.24,3.09]
[1755350484064,4.46044646,188.31,188.23,3.09]
[1755350484256,2.86,188.24,188.23,3.09]
[1755350484457,135.80044646,188.32,188.22,3.63016726]
[1755350484663,2.86,188.23,188.2,8.3998]
[1755350484860,2.86,188.23,188.21,3.09]
[1755350485266,2.86,188.23,188.22,3.09]
[1755350488264,2.86,188.31,188.22,3.09]
[1755350488469,2.86,188.29,188.22,3.09]
[1755350492169,71.61232667,188.36,188.24,3.63016726]
[1755350492375,2.86,188.34,188.25,3.09]
[1755350492564,2.86,188.32,188.25,8.3984]
[1755350492769,2.86,188.32,188.26,3.09]
[1755350497674,2.86,188.32,188.27,3.09]
[1755350497874,2.86,188.32,188.28,3.09]
[1755350498080,2.86,188.32,188.24,3.09]
[1755350498275,2.86,188.32,188.26,3.09]
[1755350499876,2.86,188.32,188.27,3.09]
[1755350500078,2.86,188.35,188.27,3.09]
[1755350500476,2.86,188.35,188.29,3.09]
[1755350510783,357.1,188.38,188.29,3.09]
[1755350510989,8.17739399,188.37,188.29,3.63016726]
[1755350511282,2.83,188.35,188.3,2.97]
[1755350512184,2.83,188.37,188.3,2.97]
[1755350512383,2.83,188.35,188.29,3.63016726]
[1755350512585,2.83,188.35,188.3,2.97]
[1755350513489,2.83,188.33,188.27,2.97]
[1755350514987,2.83,188.33,188.3,2.97]
[1755350515384,2.83,188.32,188.31,2.97]
[1755350516481,4.46044646,188.4,188.31,2.97]
[1755350516687,2.83,188.38,188.32,3.63016726]
[1755350516880,2.83,188.38,188.34,2.97]
[1755350517894,2.83,188.38,188.32,6.60016726]
[1755350518187,2.83,188.38,188.32,11.90666726]
[1755350518381,2.83,188.38,188.32,3.63016726]
[1755350518581,2.83,188.38,188.34,2.97]
[1755350518885,2.83,188.4,188.34,2.97]
[1755350519078,2.83,188.38,188.34,2.97]
[1755350519589,2.83,188.38,188.32,8.93656726]
[1755350519780,2.83,188.38,188.32,6.60016726]
[1755350520089,3.79710604,188.37,188.32,11.90666726]
[1755350520284,2.83,188.38,188.32,11.90666726]
[1755350520485,2.83,188.36,188.33,2.97]
[1755350520684,131.16,188.41,188.31,2.97]
[1755350520685,2.83,188.4,188.31,2.97]
[1755350520881,7.29044646,188.38,188.29,2.97]
[1755350521081,2.83,188.36,188.29,2.97]
[1755350521292,12.33419424,188.37,188.29,2.97]
[1755350521293,2.83,188.34,188.29,2.97]
[1755350521493,6.62758409,188.33,188.27,2.97]
[1755350521791,2.83,188.33,188.29,5.3071]
[1755350521986,2.83,188.33,188.3,2.97]
[1755350522285,2.83,188.34,188.3,2.97]
[1755350522992,2.83,188.34,188.31,5.3067]
[1755350523288,2.83,188.34,188.33,2.97]
[1755350526089,6.6404023,188.34,188.33,2.97]
[1755350526887,3.8104023,188.34,188.33,2.97]
[1755350527088,2.83,188.34,188.33,2.97]
[1755350527493,3.81142335,188.34,188.21,44.0]
[1755350527691,4.46044646,188.38,188.29,2.97]
[1755350527888,4.46044646,188.38,188.28,3.63016726]
[1755350527889,2.83,188.36,188.28,3.63016726]
[1755350528093,2.83,188.34,188.29,2.97]
[1755350528390,2.83,188.38,188.31,5.3068]
[1755350528594,2.83,188.36,188.32,2.97]
[1755350528794,2.83,188.37,188.32,2.97]
[1755350529093,2.83,188.36,188.35,8.2757]
[1755350529595,135.62044646,188.41,188.35,8.2757]
[1755350529797,2.83,188.39,188.35,8.2757]
[1755350529996,2.83,188.37,188.35,8.2757]
[1755350530193,2.83,188.36,188.35,8.2757]
[1755350531696,2.83,188.38,188.35,8.2757]
[1755350531896,2.83,188.36,188.35,8.2757]
[1755350533094,2.83,188.36,188.35,2.97]
[1755350534894,20.87583492,188.61,188.36,2.97]
[1755350534895,2.83,188.43,188.36,2.97]
[1755350535094,4.46044646,188.47,188.4,3.63016726]
[1755350535295,2.83,188.42,188.41,2.97]
[1755350536002,2.83,188.45,188.41,2.97]
[1755350536195,3.8132891,188.44,188.41,2.97]
[1755350536498,2.83,188.45,188.4,3.63016726]
[1755350536499,2.83,188.45,188.42,5.3035]
[1755350536700,2.83,188.45,188.43,2.97]
[1755350536896,2.83,188.44,188.43,2.97]
[1755350537296,4.46044646,188.49,188.41,5.3037]
[1755350537497,2.83,188.47,188.41,5.3037]
[1755350537699,2.83,188.45,188.43,2.97]
[1755350537998,7.29044646,188.49,188.43,2.97]
[1755350538296,2.83,188.47,188.43,2.97]
[1755350538500,3.79977668,188.46,188.43,2.97]
[1755350538694,3.02,188.44,188.43,2.97]
[1755350539398,3.02,188.49,188.41,2.99]
[1755350539600,4.46044646,188.53,188.44,2.99]
[1755350539801,3.02,188.51,188.44,2.99]
[1755350539998,3.02,188.49,188.45,5.3028]
[1755350540201,3.02,188.49,188.46,2.99]
[1755350540900,3.02,188.54,188.44,2.99]
[1755350541100,3.02,188.52,188.46,5.3024]
[1755350541313,6.81343125,188.51,188.45,2.99]
[1755350541507,3.02,188.51,188.45,2.99]
[1755350542308,3.02,188.51,188.43,3.63016726]
[1755350542309,3.02,188.51,188.43,5.3033]
[1755350543001,3.02,188.51,188.44,8.2931]
[1755350543206,3.02,188.51,188.45,2.99]
[1755350544018,3.02,188.51,188.4,3.63016726]
[1755350544213,3.02,188.51,188.41,2.99]
[1755350544713,3.02,188.51,188.42,5.3036]
[1755350544913,3.02,188.51,188.43,2.99]
[1755350546416,3.02,188.51,188.43,8.2934]
[1755350546615,3.02,188.51,188.44,2.99]
[1755350547217,3.02,188.51,188.45,2.99]
[1755350548416,3.02,188.51,188.45,8.2928]
[1755350549116,3.02,188.51,188.45,2.99]
[1755350551214,3.02,188.51,188.45,8.2928]
[1755350551414,3.02,188.51,188.46,2.99]
[1755350552213,3.02,188.55,188.49,5.3015]
[1755350552415,3.02,188.55,188.46,3.63016726]
[1755350552416,131.0,188.55,188.5,2.99]
[1755350552611,3.02,188.54,188.46,3.63016726]
[1755350552819,3.02,188.54,188.48,2.99]
[1755350553918,131.0,188.54,188.46,3.63016726]
[1755350554119,3.02,188.53,188.48,2.99]
[1755350555018,3.02,188.53,188.45,2.99]
[1755350555522,3.02,188.51,188.48,2.99]
[1755350555713,130.98,188.52,188.47,5.3021]
[1755350555714,130.98,188.52,188.49,2.99]
[1755350555913,3.02,188.5,188.49,2.99]
[1755350558123,130.98,188.52,188.46,2.99]
[1755350558415,3.02,188.51,188.47,2.99]
[1755350558619,3.02,188.51,188.48,2.99]
[1755350559313,3.02,188.51,188.45,5.3028]
[1755350559508,3.02,188.49,188.4,2.99]
[1755350559721,3.02,188.49,188.38,94.87540406]
[1755350559722,3.02,188.49,188.42,2.99]
[1755350559912,3.02,188.52,188.42,2.99]
[1755350560220,3.02,188.5,188.43,2.99]
[1755350560418,3.02,188.5,188.41,6.62016726]
[1755350560623,3.02,188.48,188.41,6.62016726]
[1755350561718,3.02,188.48,188.41,2.99]
[1755350561918,3.02,188.48,188.42,2.99]
[1755350562620,3.02,188.48,188.43,2.99]
[1755350562817,3.02,188.47,188.44,2.99]
[1755350563214,3.02,188.46,188.45,2.99]
[1755350564230,3.02,188.46,188.3,367.2537]
[1755350564231,3.02,188.49,188.4,2.99]
[1755350564417,3.02,188.49,188.41,3.63016726]
[1755350564619,3.02,188.49,188.42,2.99]
[1755350565727,3.02,188.49,188.4,2.99]
[1755350565922,3.7845082,188.48,188.4,2.99]
[1755350566123,3.02,188.47,188.4,2.99]
[1755350567025,3.02,188.47,188.38,2.99]
[1755350567224,3.02,188.45,188.38,2.99]
[1755350568419,135.58044646,188.5,188.35,3.63016726]
[1755350568420,3.02,188.43,188.35,2.99]
[1755350568623,4.46044646,188.47,188.38,5.3048]
[1755350568926,3.09,188.45,188.39,3.04]
[1755350569525,3.09,188.45,188.41,3.04]
[1755350570925,3.09,188.45,188.37,3.63016726]
[1755350571223,3.09,188.45,188.39,5.3043]
[1755350571428,3.09,188.45,188.39,3.04]
[1755350572823,3.09,188.45,188.4,8.3442]
[1755350573322,131.22,188.46,188.41,3.04]
[1755350573323,3.09,188.46,188.41,3.04]
[1755350574228,3.09,188.46,188.4,5.3042]
[1755350575222,3.09,188.46,188.4,8.3442]
[1755350575422,3.80693055,188.45,188.4,5.3042]
[1755350575632,131.16,188.46,188.4,5.3042]
[1755350575931,3.09,188.43,188.42,3.04]
[1755350576923,3.09,188.43,188.4,8.3442]
[1755350577125,3.09,188.42,188.41,3.04]
[1755350578523,3.09,188.48,188.41,3.04]
[1755350578723,3.09,188.46,188.4,3.63016726]
[1755350579025,3.09,188.49,188.41,3.04]
[1755350579223,3.09,188.47,188.41,3.04]
[1755350579424,3.09,188.45,188.41,3.04]
[1755350579828,3.09,188.45,188.42,3.63016726]
[1755350580029,3.09,188.45,188.44,3.04]
[1755350580230,3.09,188.45,188.44,8.3431]
[1755350580530,3.09,188.49,188.42,6.67016726]
[1755350580731,3.09,188.47,188.42,6.67016726]
[1755350580931,3.09,188.45,188.39,6.67016726]
[1755350581233,3.09,188.42,188.41,3.04]
[1755350581428,3.09,188.42,188.4,5.304]
[1755350581736,3.09,188.41,188.4,8.344]
[1755350582229,3.09,188.47,188.38,3.04]
[1755350582527,3.09,188.45,188.36,3.04]
[1755350582731,3.09,188.43,188.34,6.67016726]
[1755350582928,3.09,188.41,188.34,6.67016726]
[1755350583128,3.09,188.39,188.34,6.67016726]
[1755350583323,3.09,188.39,188.35,3.04]
[1755350584039,3.09,188.37,188.31,3.04]
[1755350584234,3.09,188.35,188.28,3.63016726]
[1755350584435,3.09,188.35,188.28,3.04]
[1755350584629,3.09,188.33,188.28,3.04]
[1755350584835,3.09,188.33,188.27,3.04]
[1755350585036,3.09,188.32,188.3,3.04]
[1755350585531,3.09,188.32,188.26,3.63016726]
[1755350585735,3.09,188.32,188.31,3.04]
[1755350586328,3.09,188.31,188.29,5.3073]
[1755350586528,3.09,188.31,188.25,3.04]
[1755350587830,3.09,188.31,188.23,8.3489]
[1755350588130,3.09,188.31,188.24,8.3487]
[1755350588526,3.09,188.31,188.25,3.04]
[1755350588726,3.09,188.31,188.22,3.04]
[1755350590238,3.7946138,188.3,188.2,3.04]
[1755350590433,3.09,188.31,188.18,3.63016726]
[1755350590630,3.09,188.29,188.19,3.04]
[1755350591933,3.09,188.29,188.15,3.63016726]
[1755350592135,3.09,188.26,188.16,3.04]
[1755350592334,3.09,188.26,188.15,3.63016726]
[1755350592531,3.788371,188.25,188.13,3.04]
[1755350592743,3.09,188.23,188.13,3.04]
[1755350593239,3.78396933,188.22,188.13,3.04]
[1755350593435,3.09,188.2,188.11,3.63016726]
[1755350593633,3.63016726,188.18,188.05,8.94426726]
[1755350593837,3.09,188.17,188.09,3.04]
[1755350594340,3.09,188.17,188.13,3.04]
[1755350594542,3.09,188.16,188.11,3.63016726]
[1755350594737,3.09,188.22,188.15,5.3113]
[1755350594940,6.72016726,188.22,188.12,3.04]
[1755350595243,3.09,188.18,188.09,3.04]
[1755350595540,3.09,188.18,188.07,3.04]
[1755350596040,3.09,188.17,188.07,8.3533]
[1755350596439,3.09,188.17,188.08,5.3131]
[1755350596938,3.09,188.17,188.08,3.04]
[1755350597637,3.09,188.12,188.02,6.67016726]
[1755350598141,3.09,188.12,188.04,5.3144]
[1755350598741,3.09,188.12,188.04,8.4044]
[1755350599241,3.09,188.12,188.04,3.09]
[1755350600744,3.09,188.12,188.04,8.4044]
[1755350600940,3.09,188.12,188.05,3.09]
[1755350601337,3.09,188.12,188.05,5.3139]
[1755350601544,3.09,188.12,188.06,3.09]
[1755350602441,3.09,188.12,188.03,3.09]
[1755350603239,2.99,188.09,188.0,3.09]
[1755350604042,2.99,188.09,187.96,3.63016726]
[1755350604346,2.99,188.06,187.97,3.09]
[1755350605052,2.99,188.06,188.0,5.3153]
[1755350605248,2.99,188.06,188.02,3.09]
[1755350605545,2.99,188.05,188.02,3.09]
[1755350605748,2.99,188.04,188.02,3.09]
[1755350605943,2.99,188.04,187.96,3.63016726]
[1755350606148,2.99,188.09,188.03,3.09]
[1755350606545,2.99,188.09,188.06,3.09]
[1755350606845,2.99,188.09,188.07,3.09]
[1755350607149,2.99,188.08,188.07,3.09]
[1755350607944,2.99,188.12,188.07,3.09]
[1755350608147,132.22,188.13,188.08,3.63016726]
[1755350608345,132.22,188.13,188.09,3.09]
[1755350608551,132.22,188.13,188.11,3.09]
[1755350608750,2.99,188.18,188.11,3.09]
[1755350609051,2.99,188.18,188.12,3.09]
[1755350609252,2.99,188.18,188.12,8.4021]
[1755350609555,2.99,188.17,188.07,3.09]
[1755350609744,3.63016726,188.15,188.07,3.09]
[1755350609942,2.99,188.14,188.07,3.09]
[1755350613359,2.99,188.14,188.07,8.4035]
[1755350613961,2.99,188.14,188.08,3.09]
[1755350615357,2.99,188.14,188.06,3.09]
[1755350619163,2.99,188.14,188.06,8.4038]
[1755350619465,2.99,188.14,188.07,3.09]
[1755350620164,2.99,188.14,188.09,3.09]
[1755350620667,2.99,188.14,188.07,5.3135]
[1755350620865,2.99,188.14,188.1,3.09]
[1755350621066,3.63016726,188.17,188.1,3.09]
[1755350621067,132.12,188.15,188.1,3.09]
[1755350621361,2.99,188.14,188.08,3.09]
[1755350622367,2.99,188.14,188.08,5.3132]
[1755350622566,2.99,188.14,188.1,3.09]
[1755350622763,2.99,188.14,188.08,3.09]
[1755350626169,2.99,188.14,188.08,8.4032]
[1755350626570,2.99,188.14,188.1,3.09]
[1755350627069,2.99,188.14,188.08,3.09]
[1755350627267,8.16239676,188.13,188.08,5.3133]
[1755350627465,2.99,188.12,188.1,3.09]
[1755350627866,361.28044646,188.19,188.11,3.63016726]
[1755350628169,2.99,188.17,188.08,6.72016726]
[1755350628370,2.99,188.15,188.08,6.72016726]
[1755350628569,10.95081534,188.14,188.08,6.72016726]
[1755350628767,3.0,188.12,188.09,2.94]
[1755350629066,3.0,188.1,188.09,2.94]
[1755350629463,4.46044646,188.16,188.09,2.94]